bitfinex-derivatives/quotes_BTCF0:USTF0_20251115
["timestamp","ask_amount","ask_price","bid_price","bid_amount"]
[1763195930446,0.05551824,96196.0,96184.0,0.68441503]
[1763195930646,0.10932888,96185.0,96184.0,0.65701]
[1763195930845,0.10932888,96185.0,96184.0,0.68441499]
[1763195932149,0.47502,96203.0,96202.0,0.11239]
[1763195932541,0.58442684,96203.0,96202.0,0.11239]
[1763195933949,0.11422,96195.0,96194.0,0.47319]
[1763195934152,0.11422,96195.0,96194.0,0.50057811]
[1763195934352,0.22392967,96195.0,96194.0,0.50057811]
[1763195935154,0.22392967,96195.0,96194.0,0.65027811]
[1763195939854,0.19894559,96195.0,96194.0,0.62289]
[1763195940947,0.19894559,96195.0,96194.0,0.6502526]
[1763195941148,0.19894559,96195.0,96194.0,0.47319]
[1763195942051,0.10970967,96195.0,96194.0,0.4991]
[1763195942244,0.00015595,96212.0,96211.0,0.1075]
[1763195942449,0.00015595,96212.0,96211.0,0.4683]
[1763195942650,0.11834328,96212.0,96211.0,0.4683]
[1763195946855,0.11834328,96212.0,96211.0,0.618]
[1763195947052,0.11834328,96212.0,96211.0,0.6453284]
[1763195947254,0.09481388,96212.0,96211.0,0.64532464]
[1763195947561,0.05551824,96245.0,96216.0,0.1357301]
[1763195947760,0.10617,96234.0,96233.0,0.4683]
[1763195948060,0.21624525,96234.0,96233.0,0.4683]
[1763195950356,0.21624525,96234.0,96233.0,0.41385]
[1763195953558,0.21624525,96234.0,96233.0,0.46675]
[1763195954058,0.21624525,96234.0,96233.0,0.3608]
[1763195954653,0.00015595,96243.0,96242.0,0.10916]
[1763195954952,0.11963987,96243.0,96242.0,0.46996]
[1763195955151,0.25847987,96243.0,96242.0,0.46996]
[1763195955759,0.22741987,96243.0,96242.0,0.46996]
[1763195956566,0.22641987,96243.0,96242.0,0.47096]
[1763195957664,0.17158987,96243.0,96242.0,0.47096]
[1763195957960,0.11963987,96243.0,96242.0,0.47096]
[1763195958261,0.11963987,96243.0,96242.0,0.46996]
[1763195958959,0.22641987,96243.0,96242.0,0.388084]
[1763195959159,0.22641987,96243.0,96227.0,0.3608]
[1763195959160,0.10678,96228.0,96227.0,0.3608]
[1763195959361,0.10678,96228.0,96224.0,0.00015595]
[1763195959362,0.10678,96225.0,96224.0,0.00015595]
[1763195959766,0.2190209,96225.0,96224.0,0.00015595]
[1763195967975,0.2190209,96225.0,96224.0,0.10494595]
[1763195968273,0.2190209,96225.0,96224.0,0.46574595]
[1763195971571,0.2190209,96225.0,96224.0,0.49452729]
[1763195973871,0.1122409,96225.0,96224.0,0.52645729]
[1763195974070,0.10565,96242.0,96241.0,0.10479]
[1763195974381,0.21788862,96242.0,96241.0,0.13357134]
[1763195976487,0.16598862,96242.0,96241.0,0.13357134]
[1763195977071,0.11223862,96242.0,96241.0,0.13357134]
[1763195977978,0.21788862,96242.0,96241.0,0.13357134]
[1763195982284,0.21788862,96242.0,96241.0,0.10479]
[1763195985387,0.10565,96237.0,96236.0,0.25449]
[1763195985692,0.22469931,96237.0,96236.0,0.25449]
[1763195988093,0.22469931,96237.0,96236.0,0.10479]
[1763195997088,0.11904931,96237.0,96236.0,0.10479]
[1763195997290,0.07435789,96263.0,96262.0,0.10479]
[1763195997291,0.10565,96263.0,96262.0,0.10479]
[1763195997897,0.22504351,96263.0,96262.0,0.10479]
[1763195999499,0.22604351,96263.0,96262.0,0.10479]
[1763196001900,0.04040351,96263.0,96262.0,0.10479]
[1763196002199,0.04040351,96263.0,96259.0,0.4647535]
[1763196002200,0.00015586,96272.0,96270.0,0.1425421]
[1763196002393,0.00015586,96272.0,96270.0,0.5033421]
[1763196003203,0.07785,96285.0,96284.0,0.0386]
[1763196003399,0.12828,96285.0,96284.0,0.3994]
[1763196003598,0.24652028,96285.0,96284.0,0.3994]
[1763196004402,0.19609028,96285.0,96284.0,0.3994]
[1763196004800,0.24652028,96285.0,96284.0,0.3994]
[1763196007607,0.11824028,96285.0,96284.0,0.3994]
[1763196007907,0.21341876,96291.0,96284.0,0.3608]
[1763196008098,0.10071803,96290.0,96289.0,0.0386]
[1763196008500,0.21561679,96290.0,96289.0,0.0386]
[1763196009101,0.00015559,96294.0,96289.0,0.1883]
[1763196009306,0.09867559,96294.0,96293.0,0.09939]
[1763196009696,0.21632616,96294.0,96293.0,0.09939]
[1763196010103,0.16589616,96294.0,96293.0,0.09939]
[1763196010505,0.11780616,96294.0,96293.0,0.2033073]
[1763196010710,0.10949,96316.0,96315.0,0.04861]
[1763196010906,0.10449,96313.0,96312.0,0.3608]
[1763196011203,0.10449,96313.0,96312.0,0.36799]
[1763196011400,0.21585301,96313.0,96312.0,0.36799]
[1763196012202,0.21585301,96313.0,96312.0,0.3608]
[1763196012712,0.21685301,96313.0,96312.0,0.36799]
[1763196013406,0.21685301,96313.0,96312.0,0.3608]
[1763196014612,0.10449,96306.0,96305.0,0.1497]
[1763196015003,0.21406395,96306.0,96305.0,0.1497]
[1763196015804,0.21506395,96306.0,96305.0,0.1497]
[1763196020206,0.10449,96305.0,96304.0,0.3608]
[1763196020608,0.10449,96298.0,96284.0,0.3608]
[1763196020908,0.10449,96298.0,96276.0,0.3608]
[1763196020909,0.10449,96277.0,96276.0,0.3608]
[1763196021108,0.10449,96266.0,96265.0,0.3608]
[1763196021311,0.10449,96258.0,96257.0,0.3608]
[1763196021513,0.10449,96251.0,96250.0,0.1473288]
[1763196021702,0.05113,96249.0,96246.0,0.3608]
[1763196022010,0.22469214,96249.0,96246.0,0.3608]
[1763196022206,0.22469214,96249.0,96241.0,0.14013458]
[1763196022408,0.22469214,96249.0,96241.0,0.00015578]
[1763196022604,0.10449,96242.0,96241.0,0.00015578]
[1763196023010,0.22322948,96242.0,96241.0,0.00015578]
[1763196026008,0.58402948,96242.0,96241.0,0.00015578]
[1763196026411,0.22322948,96242.0,96241.0,0.10930578]
[1763196031016,0.11873948,96242.0,96241.0,0.10930578]
[1763196031215,0.03188,96280.0,96259.0,0.10358]
[1763196031515,0.11029805,96260.0,96259.0,0.49222899]
[1763196032916,0.11029805,96260.0,96259.0,0.46438]
[1763196034926,0.11029805,96260.0,96259.0,0.61408]
[1763196035127,0.11029805,96260.0,96259.0,0.6419263]
[1763196035819,0.11029805,96260.0,96259.0,0.66976136]
[1763196036026,0.11029805,96260.0,96259.0,0.6419263]
[1763196036822,0.11014256,96260.0,96259.0,0.6419263]
[1763196037122,0.10265,96271.0,96270.0,0.10358]
[1763196037318,0.10265,96271.0,96270.0,0.4922263]
[1763196037518,0.21201527,96271.0,96270.0,0.4922263]
[1763196040833,0.21201527,96271.0,96270.0,0.6419263]
[1763196041524,0.15975527,96271.0,96270.0,0.61408]
[1763196041836,0.21201527,96271.0,96270.0,0.61408]
[1763196042235,0.10936527,96271.0,96270.0,0.61408]
[1763196042535,0.1158837,96279.0,96278.0,0.10358]
[1763196042733,0.1158837,96279.0,96278.0,0.46438]
[1763196042930,0.05039,96279.0,96278.0,0.46438]
[1763196043333,0.16915253,96279.0,96278.0,0.46438]
[1763196044630,0.16915253,96279.0,96278.0,0.49252501]
[1763196045339,0.22141253,96279.0,96278.0,0.49252501]
[1763196045727,0.11876253,96279.0,96278.0,0.64222501]
[1763196046127,0.21367874,96295.0,96294.0,0.10358]
[1763196046334,0.10265,96295.0,96294.0,0.46438]
[1763196046529,0.21367874,96295.0,96294.0,0.46438]
[1763196048343,0.21467874,96295.0,96294.0,0.46438]
[1763196049034,0.21367874,96295.0,96294.0,0.46438]
[1763196049435,0.3608,96310.0,96294.0,0.46438]
[1763196049631,0.3608,96310.0,96288.0,0.02786]
[1763196049632,0.05226,96310.0,96304.0,0.3608]
[1763196049836,0.10265,96305.0,96304.0,0.4171]
[1763196050232,0.21249299,96305.0,96304.0,0.4171]
[1763196052337,0.10265,96301.0,96300.0,0.00219803]
[1763196052633,0.10265,96301.0,96295.0,0.10024953]
[1763196052634,0.13453,96296.0,96295.0,0.10024953]
[1763196053037,0.2489851,96296.0,96295.0,0.10024953]
[1763196053231,0.2489851,96296.0,96290.0,0.00219803]
[1763196053232,0.10265,96291.0,96290.0,0.05849803]
[1763196053439,0.10265,96291.0,96290.0,0.00219803]
[1763196053633,0.05039,96286.0,96285.0,0.00015578]
[1763196053839,0.46345,96286.0,96285.0,0.00015578]
[1763196054045,0.57622654,96286.0,96285.0,0.00015578]
[1763196054343,0.10265,96281.0,96280.0,0.10024953]
[1763196054540,0.10265,96271.0,96270.0,0.46104953]
[1763196054744,0.10265,96271.0,96270.0,0.36299803]
[1763196054944,0.21542654,96271.0,96270.0,0.00219803]
[1763196055246,0.10265,96262.0,96261.0,0.46120531]
[1763196055444,0.10265,96262.0,96261.0,0.46453578]
[1763196055640,0.21268483,96262.0,96261.0,0.49269096]
[1763196055941,0.11003483,96262.0,96261.0,0.49269096]
[1763196056439,0.10265,96262.0,96261.0,0.49269096]
[1763196056739,0.58057226,96262.0,96261.0,0.02831096]
[1763196056940,0.21977226,96262.0,96261.0,0.00015578]
[1763196060848,0.21977226,96262.0,96261.0,0.02835691]
[1763196061037,0.58057226,96262.0,96261.0,0.02835691]
[1763196061235,0.10615,96253.0,96252.0,0.10024953]
[1763196061438,0.10615,96253.0,96240.0,0.10024953]
[1763196061439,0.10615,96241.0,96240.0,0.29839906]
[1763196061642,0.10615,96241.0,96240.0,0.10009803]
[1763196061842,0.22090672,96241.0,96240.0,0.10009803]
[1763196062240,0.22090672,96241.0,96240.0,0.00219803]
[1763196063143,0.22090672,96241.0,96240.0,0.10009803]
[1763196063747,0.22090672,96241.0,96240.0,0.10109803]
[1763196064248,0.11475672,96241.0,96240.0,0.10109803]
[1763196064449,0.46695,96261.0,96260.0,0.0979]
[1763196064742,0.57613422,96261.0,96260.0,0.10009803]
[1763196065140,0.21533422,96261.0,96260.0,0.10009803]
[1763196065352,0.10918422,96261.0,96260.0,0.10009803]
[1763196065739,0.10615,96261.0,96260.0,0.10009803]
[1763196066146,0.22355126,96261.0,96260.0,0.10009803]
[1763196066845,0.17043126,96261.0,96260.0,0.10009803]
[1763196067246,0.22355126,96261.0,96260.0,0.05074803]
[1763196067548,0.22355126,96261.0,96260.0,0.46189803]
[1763196068850,0.22355126,96261.0,96260.0,0.001]
[1763196069144,0.22355126,96261.0,96251.0,0.10040531]
[1763196069145,0.10615,96252.0,96251.0,0.10040531]
[1763196069346,0.46695,96252.0,96251.0,0.00015578]
[1763196069544,0.10615,96241.0,96233.0,0.3608]
[1763196069749,0.10615,96234.0,96233.0,0.40935]
[1763196070152,0.2263567,96234.0,96233.0,0.40935]
[1763196071745,0.10153,96231.0,96230.0,0.00219803]
[1763196072049,0.22190883,96231.0,96230.0,0.00219803]
[1763196072548,0.22190883,96231.0,96230.0,0.36299803]
[1763196073351,0.22190883,96231.0,96230.0,0.39109713]
[1763196073646,0.22190883,96231.0,96230.0,0.03029713]
[1763196073854,0.22190883,96231.0,96230.0,0.44331713]
[1763196074047,0.12037883,96231.0,96230.0,0.49395713]
[1763196074643,0.12037883,96231.0,96230.0,0.52187243]
[1763196075046,0.10153,96231.0,96230.0,0.03029713]
[1763196075447,0.21400685,96231.0,96230.0,0.03029713]
[1763196076243,0.21400685,96231.0,96230.0,0.03129713]
[1763196076951,0.21400685,96231.0,96230.0,0.03029713]
[1763196079844,0.11247685,96231.0,96230.0,0.52477713]
[1763196080044,0.11247685,96231.0,96230.0,0.52476219]
[1763196080242,0.21295012,96242.0,96241.0,0.05222]
[1763196080448,0.10153,96242.0,96241.0,0.05222]
[1763196080950,0.10153,96241.0,96240.0,0.00219803]
[1763196081350,0.21440006,96241.0,96240.0,0.00219803]
[1763196083656,0.21440006,96241.0,96240.0,0.05441803]
[1763196083959,0.21440006,96241.0,96240.0,0.13323807]
[1763196089257,0.21440006,96241.0,96240.0,0.03037807]
[1763196090159,0.21440006,96241.0,96240.0,0.02818004]
[1763196090653,0.21440006,96241.0,96231.0,0.1281228]
[1763196090654,0.09282,96234.0,96231.0,0.1281228]
[1763196090863,0.09282,96225.0,96224.0,0.12827867]
[1763196091060,0.09282,96225.0,96224.0,0.02802914]
[1763196091260,0.20453938,96225.0,96224.0,0.00015587]
[1763196096059,0.20453938,96225.0,96224.0,0.09534587]
[1763196097451,0.11171938,96225.0,96224.0,0.09534587]
[1763196097962,0.21101675,96236.0,96235.0,0.09519]
[1763196098162,0.09282,96236.0,96235.0,0.09519]
[1763196098363,0.21193662,96236.0,96235.0,0.09519]
[1763196098952,0.21193662,96236.0,96235.0,0.04933]
[1763196099157,0.09282,96231.0,96230.0,0.09738803]
[1763196099463,0.20770395,96231.0,96230.0,0.09738803]
[1763196099758,0.09282,96227.0,96224.0,0.00015587]
[1763196099957,0.09282,96225.0,96224.0,0.00015587]
[1763196100159,0.09282,96221.0,96215.0,0.02800214]
[1763196100362,0.02758,96228.0,96203.0,0.09519]
[1763196100363,0.09282,96204.0,96203.0,0.09519]
[1763196100758,0.21081121,96204.0,96203.0,0.09519]
[1763196101168,0.11799121,96204.0,96203.0,0.09519]
[1763196101569,0.00015587,96213.0,96212.0,0.09519]
[1763196101761,0.04755587,96213.0,96212.0,0.45599]
[1763196101961,0.15565483,96213.0,96212.0,0.45599]
[1763196102863,0.15565483,96213.0,96212.0,0.48371078]
[1763196106466,0.20107483,96213.0,96212.0,0.48371078]
[1763196106961,0.20107483,96213.0,96212.0,0.12291078]
[1763196107477,0.20107483,96213.0,96201.0,0.38801]
[1763196107478,0.09282,96197.0,96194.0,0.00015587]
[1763196107673,0.09282,96197.0,96196.0,0.09526787]
[1763196107875,0.20557515,96197.0,96196.0,0.09526787]
[1763196108166,0.20557515,96197.0,96196.0,7.787e-05]
[1763196108368,0.21690068,96197.0,96196.0,7.787e-05]
[1763196108974,0.21690068,96197.0,96170.0,0.14015623]
[1763196108975,0.09282,96176.0,96170.0,0.14015623]
[1763196109168,0.45362,96176.0,96166.0,0.00025997]
[1763196109367,0.09282,96167.0,96166.0,0.00025997]
[1763196109566,0.45362,96167.0,96166.0,0.00025997]
[1763196109772,0.57003457,96167.0,96166.0,0.00025997]
[1763196110071,0.57003457,96167.0,96135.0,0.00468089]
[1763196110072,0.09282,96141.0,96140.0,0.23534623]
[1763196110269,0.45369787,96141.0,96140.0,0.00219803]
[1763196110482,0.57105968,96141.0,96140.0,0.00219803]
[1763196111372,0.57105968,96141.0,96140.0,0.05252803]
[1763196112167,0.57105968,96141.0,96140.0,0.00319803]
[1763196112770,0.57105968,96141.0,96140.0,0.001]
[1763196112981,0.09282,96136.0,96135.0,0.00468089]
[1763196113270,0.20108438,96136.0,96135.0,0.00468089]
[1763196113574,0.09282,96127.0,96126.0,0.00026008]
[1763196113779,0.09282,96127.0,96110.0,0.16736623]
[1763196113780,0.09282,96111.0,96110.0,0.14015623]
[1763196114077,0.56196225,96111.0,96110.0,0.00219803]
[1763196114977,0.10834225,96111.0,96110.0,0.09738803]
[1763196115765,0.00015603,96120.0,96119.0,0.09519]
[1763196116276,0.11702202,96120.0,96119.0,0.09519]
[1763196116674,0.3608,96127.0,96119.0,0.09519]
[1763196116675,0.3608,96137.0,96120.0,0.00219803]
[1763196116877,0.45362,96137.0,96136.0,0.09519]
[1763196117274,0.56602086,96137.0,96136.0,0.09519]
[1763196117667,0.47320086,96137.0,96136.0,0.09519]
[1763196117872,0.11240086,96137.0,96136.0,0.09519]
[1763196118175,0.00015603,96146.0,96145.0,0.09594]
[1763196118374,0.09278603,96146.0,96145.0,0.04933]
[1763196118574,0.20276763,96146.0,96145.0,0.04933]
[1763196118779,0.09263,96141.0,96140.0,0.09216803]
[1763196118977,0.09263,96141.0,96140.0,0.00219803]
[1763196119180,0.09263,96128.0,96127.0,0.00015603]
[1763196119377,0.45343,96128.0,96127.0,0.00015603]
[1763196119580,0.57404324,96128.0,96127.0,0.00015603]
[1763196120272,0.57404324,96128.0,96127.0,0.00115603]
[1763196120874,0.09263,96111.0,96110.0,0.14015623]
[1763196121080,0.09263,96111.0,96110.0,0.00219803]
[1763196121280,0.2050509,96111.0,96110.0,0.00219803]
[1763196121576,0.2050509,96111.0,96110.0,0.09216803]
[1763196121577,0.1124209,96111.0,96110.0,0.09216803]
[1763196121772,0.40629,96128.0,96127.0,0.08997]
[1763196121969,0.3608,96128.0,96127.0,0.08997]
[1763196122169,0.1862609,96128.0,96127.0,0.08997]
[1763196122374,0.02847,96180.0,96130.0,0.40219803]
[1763196122375,0.02847,96156.0,96130.0,0.40219803]
[1763196122578,0.1211,96156.0,96155.0,0.3608]
[1763196122881,0.23311767,96156.0,96155.0,0.3608]
[1763196130887,0.09657,96148.0,96147.0,0.3608]
[1763196131280,0.21506509,96148.0,96147.0,0.3608]
[1763196137594,0.21506509,96148.0,96147.0,0.38800964]
[1763196141591,0.21506509,96148.0,96147.0,0.41592208]
[1763196143297,0.21506509,96148.0,96147.0,0.38800964]
[1763196143486,0.21506509,96148.0,96147.0,0.41592208]
[1763196144502,0.21506509,96148.0,96147.0,0.38800964]
[1763196146195,0.11849509,96148.0,96147.0,0.49209514]
[1763196146397,0.11849509,96148.0,96147.0,0.64179514]
[1763196146598,0.09657,96151.0,96150.0,0.00219803]
[1763196146788,0.09657,96151.0,96150.0,0.02940767]
[1763196146991,0.21369707,96151.0,96150.0,0.02940767]
[1763196149895,0.21369707,96151.0,96150.0,0.49428987]
[1763196150197,0.09213118,96151.0,96150.0,0.5317034]
[1763196150401,0.13662118,96151.0,96150.0,0.49428987]
[1763196151098,0.18333118,96151.0,96150.0,0.49428987]
[1763196151698,0.18333118,96151.0,96150.0,0.39020767]
[1763196152098,0.18333118,96151.0,96150.0,0.53990767]
[1763196157404,0.18333118,96151.0,96150.0,0.39020767]
[1763196157804,0.18333118,96151.0,96146.0,0.02823348]
[1763196157805,0.0912,96147.0,96146.0,0.00015603]
[1763196158005,0.0662012,96147.0,96146.0,0.00015603]
[1763196158300,0.17856644,96147.0,96146.0,0.00015603]
[1763196159206,0.17856644,96147.0,96146.0,0.00115603]
[1763196166110,0.17856644,96147.0,96146.0,0.02923348]
[1763196166919,0.19805983,96147.0,96146.0,0.00115603]
[1763196169813,0.19805983,96147.0,96146.0,0.02836826]
[1763196170010,0.11236524,96147.0,96146.0,0.02836826]
[1763196170314,0.04449,96147.0,96146.0,0.02836826]
[1763196170525,0.04449,96147.0,96146.0,0.13245476]
[1763196170526,0.0912,96147.0,96146.0,0.13245476]
[1763196170715,0.02847,96156.0,96150.0,0.00219803]
[1763196170913,0.11967,96156.0,96155.0,0.38764]
[1763196171215,0.23601701,96156.0,96155.0,0.41485223]
[1763196172014,0.23601701,96156.0,96155.0,0.51892903]
[1763196172520,0.23601701,96156.0,96155.0,0.41485223]
[1763196172715,0.23601701,96156.0,96155.0,0.56455223]
[1763196174124,0.23601701,96156.0,96155.0,0.66862903]
[1763196175516,0.23601701,96156.0,96155.0,0.56455223]
[1763196181132,0.23601701,96156.0,96155.0,0.66862903]
[1763196181824,0.18930701,96156.0,96155.0,0.56455223]
[1763196182124,0.11889,96156.0,96155.0,0.56455223]
[1763196182530,0.11889,96156.0,96155.0,0.59263036]
[1763196183127,0.11889,96156.0,96155.0,0.59363036]
[1763196183430,0.11889,96156.0,96155.0,0.56555223]
[1763196185329,0.11889,96156.0,96155.0,0.56455223]
[1763196185531,0.11889,96156.0,96155.0,0.56555223]
[1763196186729,0.11889,96156.0,96155.0,0.56455223]
[1763196187325,0.11889,96156.0,96155.0,0.66862903]
[1763196187526,0.11889,96156.0,96155.0,0.56455223]
[1763196188635,0.23630282,96156.0,96155.0,0.55113223]
[1763196189131,0.23630282,96156.0,96155.0,0.56251223]
[1763196192333,0.23630282,96156.0,96155.0,0.59059036]
[1763196192723,0.23630282,96156.0,96155.0,0.59159036]
[1763196194534,0.23630282,96156.0,96155.0,0.56351223]
[1763196195139,0.23630282,96156.0,96155.0,0.55213223]
[1763196196332,0.23630282,96156.0,96155.0,0.55113223]
[1763196196637,0.23630282,96156.0,96155.0,0.53771223]
[1763196199436,0.23630282,96156.0,96155.0,0.5771626]
[1763196199632,0.23630282,96156.0,96155.0,0.54907223]
[1763196199828,0.23630282,96156.0,96155.0,0.54339223]
[1763196200033,0.23630282,96156.0,96155.0,0.54907223]
[1763196202039,0.23630282,96156.0,96155.0,0.65314903]
[1763196209940,0.1681041,96162.0,96161.0,0.1040703]
[1763196210145,0.11234,96162.0,96161.0,0.02721223]
[1763196210446,0.22238788,96162.0,96161.0,0.02721223]
[1763196213640,0.22238788,96162.0,96161.0,0.17691223]
[1763196216249,0.22238788,96162.0,96161.0,0.2050024]
[1763196216843,0.22238788,96162.0,96161.0,0.17691223]
[1763196220551,0.22238788,96162.0,96161.0,0.1497]
[1763196220745,0.08419,96153.0,96152.0,0.38888748]
[1763196220951,0.08419,96153.0,96152.0,0.3608]
[1763196221150,0.19972566,96153.0,96152.0,0.3608]
[1763196221850,0.08419,96148.0,96147.0,0.12893223]
[1763196222255,0.19440024,96148.0,96147.0,0.15701971]
[1763196222445,0.19440024,96148.0,96147.0,0.12893223]
[1763196223351,0.19440024,96148.0,96147.0,0.12993223]
[1763196223647,0.19440024,96148.0,96147.0,0.04633223]
[1763196223845,0.19440024,96148.0,96147.0,0.001]
[1763196230648,0.19440024,96148.0,96147.0,0.0846]
[1763196231059,0.15057024,96148.0,96147.0,0.0846]
[1763196231247,0.19440024,96148.0,96147.0,0.0846]
[1763196232746,0.19440024,96148.0,96147.0,0.11162315]
[1763196233649,0.19440024,96148.0,96147.0,0.21570865]
[1763196233852,0.15057024,96148.0,96147.0,0.11162315]
[1763196234049,0.19440024,96148.0,96147.0,0.11162315]
[1763196235451,0.11021024,96148.0,96147.0,0.11162315]
[1763196235652,0.19206959,96148.0,96147.0,0.11162315]
[1763196235855,0.08419,96148.0,96147.0,0.11162315]
[1763196236054,0.19904416,96148.0,96147.0,0.11162315]
[1763196237854,0.08563603,96165.0,96164.0,0.08114]
[1763196238056,0.08563603,96165.0,96164.0,0.46896315]
[1763196238255,0.20543448,96165.0,96164.0,0.46896315]
[1763196238849,0.20543448,96165.0,96164.0,0.38782315]
[1763196240863,0.20543448,96165.0,96164.0,0.46896315]
[1763196241660,0.20543448,96165.0,96164.0,0.44194]
[1763196241852,0.20543448,96165.0,96164.0,0.3999]
[1763196242056,0.26119858,96165.0,96164.0,0.3608]
[1763196243564,0.26119858,96165.0,96160.0,0.00219803]
[1763196243565,0.08548,96161.0,96160.0,0.00219803]
[1763196243764,0.08548,96157.0,96156.0,0.3608]
[1763196244264,0.20161884,96157.0,96156.0,0.3608]
[1763196246076,0.08548,96148.0,96147.0,0.07149509]
[1763196246277,0.08548,96147.0,96146.0,0.03925603]
[1763196246770,0.08548,96147.0,96146.0,0.00015603]
[1763196246771,0.19625589,96147.0,96146.0,0.00015603]
[1763196247774,0.00272,96137.0,96136.0,0.3608]
[1763196248171,0.11441401,96137.0,96136.0,0.3608]
[1763196248373,0.11441401,96137.0,96130.0,0.07149509]
[1763196248374,0.00272,96131.0,96130.0,0.15263509]
[1763196248674,0.12033444,96131.0,96130.0,0.08333803]
[1763196250079,0.12233444,96131.0,96130.0,0.08333803]
[1763196250275,0.17812095,96131.0,96130.0,0.08333803]
[1763196250467,0.17812919,96131.0,96130.0,0.08333803]
[1763196251170,0.12233444,96131.0,96130.0,0.08333803]
[1763196254580,0.12233444,96131.0,96130.0,0.04129803]
[1763196254879,0.12233444,96131.0,96130.0,0.07978803]
[1763196256271,0.12233444,96131.0,96130.0,0.02917643]
[1763196256474,0.12233444,96131.0,96130.0,0.0269784]
[1763196256678,0.11961444,96131.0,96125.0,0.3608]
[1763196257383,0.11961444,96131.0,96125.0,0.40015]
[1763196257583,0.11961444,96131.0,96125.0,0.03935]
[1763196257778,0.11961444,96131.0,96125.0,0.04035]
[1763196258173,0.3608,96126.0,96125.0,0.001]
[1763196258573,0.47054674,96126.0,96125.0,0.001]
[1763196259181,0.47254674,96126.0,96125.0,0.001]
[1763196261677,0.47354674,96126.0,96125.0,0.001]
[1763196262074,0.47354674,96126.0,96090.0,0.05091608]
[1763196262284,0.10404001,96110.0,96090.0,0.09437509]
[1763196262479,0.3608,96112.0,96100.0,0.07369312]
[1763196262673,0.11995457,96109.0,96100.0,0.07369312]
[1763196262874,0.3608,96104.0,96100.0,0.07369312]
[1763196263188,0.11995457,96103.0,96100.0,0.00219803]
[1763196263380,0.00010682,96102.0,96100.0,0.00219803]
[1763196263582,0.00010682,96102.0,96101.0,0.07784]
[1763196263886,0.11937399,96102.0,96101.0,0.07784]
[1763196264082,0.11937399,96102.0,96100.0,0.00219803]
[1763196264889,0.11937399,96102.0,96100.0,0.08003803]
[1763196265193,0.11937399,96102.0,96100.0,0.04154803]
[1763196265487,0.12337399,96102.0,96100.0,0.04154803]
[1763196266277,0.12337399,96102.0,96100.0,0.08003803]
[1763196266685,0.12337399,96102.0,96101.0,0.07784]
[1763196268384,0.10404001,96100.0,96073.0,0.3608]
[1763196268579,0.12337399,96102.0,96080.0,0.07149509]
[1763196268580,0.3608,96087.0,96080.0,0.07149509]
[1763196268777,0.00010069,96086.0,96080.0,0.15226312]
[1763196268986,0.10923136,96086.0,96080.0,0.15226312]
[1763196269879,0.10923136,96086.0,96080.0,0.04103803]
[1763196270280,0.10923136,96086.0,96080.0,0.00219803]
[1763196270881,0.10923136,96086.0,96076.0,0.07149509]
[1763196270882,0.11123136,96086.0,96073.0,0.3608]
[1763196271179,0.11123136,96086.0,96080.0,0.10382803]
[1763196271382,0.11123136,96086.0,96085.0,0.07857]
[1763196271790,0.11123136,96086.0,96080.0,0.10382803]
[1763196272586,0.11223136,96086.0,96085.0,0.07857]
[1763196274083,0.11123136,96086.0,96085.0,0.07857]
[1763196274282,0.11123136,96086.0,96069.0,0.3608]
[1763196274593,0.11123136,96086.0,96070.0,0.07369312]
[1763196274594,0.3608,96077.0,96070.0,0.07369312]
[1763196274779,0.00010703,96076.0,96070.0,0.07369312]
[1763196274983,0.11397568,96076.0,96070.0,0.11253312]
[1763196275479,0.11397568,96076.0,96070.0,0.07369312]
[1763196275680,0.11397568,96076.0,96060.0,0.07149509]
[1763196275681,0.3608,96074.0,96060.0,0.07149509]
[1763196275987,0.11224071,96073.0,96070.0,0.001]
[1763196276289,0.3608,96071.0,96070.0,0.03984]
[1763196276481,0.3608,96071.0,96070.0,0.04103803]
[1763196276681,0.3608,96071.0,96070.0,0.00319803]
[1763196276682,0.47304071,96071.0,96070.0,0.00319803]
[1763196276883,0.47304071,96071.0,96056.0,0.02306]
[1763196277085,0.3608,96060.0,96056.0,0.02306]
[1763196277283,0.3608,96060.0,96050.0,0.00219803]
[1763196277585,0.3608,96058.0,96055.0,4.57e-06]
[1763196277782,0.00010703,96057.0,96040.0,0.09455509]
[1763196277988,0.3608,96047.0,96040.0,0.09455509]
[1763196278187,0.36087363,96047.0,96040.0,0.09455509]
[1763196278383,0.36087363,96047.0,96025.0,0.3608]
[1763196278384,0.48032507,96047.0,96025.0,0.3608]
[1763196278588,0.48032507,96047.0,96030.0,0.07149509]
[1763196278889,0.3608,96045.0,96025.0,0.3608]
[1763196279089,0.3608,96034.0,96025.0,0.3608]
[1763196279288,0.3608,96034.0,96020.0,0.07149509]
[1763196279489,0.1102238,96033.0,96020.0,0.07149509]
[1763196279891,7.699e-05,96032.0,96024.0,0.0619]
[1763196280094,7.699e-05,96032.0,96030.0,0.10163]
[1763196280286,0.10938518,96031.0,96030.0,0.10163]
[1763196280688,0.10938518,96031.0,96030.0,0.10382803]
[1763196281786,0.11138518,96031.0,96030.0,0.10382803]
[1763196283683,0.11138518,96031.0,96030.0,0.02525803]
[1763196283891,0.11138518,96031.0,95994.0,0.05109608]
[1763196284088,0.3608,96020.0,95994.0,0.02306]
[1763196284492,0.11241626,96019.0,96003.0,0.02306]
[1763196284789,0.3608,96016.0,96010.0,0.00219803]
[1763196284990,0.3608,96016.0,96003.0,0.02306]
[1763196284991,0.3608,96016.0,96015.0,0.00568674]
[1763196285192,0.47970925,96016.0,96015.0,0.00568674]
[1763196285391,0.47982486,96016.0,96015.0,0.00568674]
[1763196285699,0.47982486,96016.0,96015.0,0.00468674]
[1763196286494,0.3608,96002.0,95969.0,0.02803608]
[1763196286697,0.7216,95976.0,95961.0,0.02803608]
[1763196286996,0.7216,95976.0,95975.0,0.10163]
[1763196286997,0.11055004,95976.0,95975.0,0.10163]
[1763196287195,0.11065802,95976.0,95975.0,0.10163]
[1763196287397,0.00010798,95976.0,95975.0,0.10163]
[1763196287700,0.00015629,95985.0,95984.0,0.07857]
[1763196288091,0.10937699,95985.0,95984.0,0.07857]
[1763196288691,0.10948971,95985.0,95984.0,0.07857]
[1763196289986,0.10948971,95985.0,95975.0,0.02306]
[1763196290192,0.3608,95976.0,95975.0,0.0619]
[1763196290499,0.11646959,95976.0,95975.0,0.10163]
[1763196291701,0.11946959,95976.0,95975.0,0.10163]
[1763196296605,0.11646959,95976.0,95975.0,0.10163]
[1763196296803,0.11946959,95976.0,95975.0,0.10163]
[1763196300107,0.05983959,95976.0,95975.0,0.10163]
[1763196300298,0.3608,95984.0,95983.0,0.07388]
[1763196300502,0.00015629,95985.0,95984.0,0.07388]